bitfinex/quotes_BTCUSD_20241123
["timestamp","ask_amount","ask_price","bid_price","bid_amount"]
[1732338607902,0.30658789,98070.0,98069.0,0.0008603]
[1732338608330,0.2263212,98070.0,98069.0,0.0008603]
[1732338608554,0.30658789,98070.0,98069.0,0.0008603]
[1732338609275,0.25958789,98070.0,98069.0,0.0008603]
[1732338609494,0.17673936,98070.0,98069.0,0.0008603]
[1732338610803,0.17801418,98070.0,98069.0,0.0008603]
[1732338611029,0.17973538,98070.0,98069.0,0.0008603]
[1732338611668,0.17973538,98070.0,98069.0,0.04306621]
[1732338612111,0.17973538,98070.0,98069.0,0.0008603]
[1732338612999,0.09946869,98070.0,98069.0,0.0008603]
[1732338613211,0.17973538,98070.0,98069.0,0.0008603]
[1732338613452,0.40373936,98057.0,98056.0,0.0017204]
[1732338613684,0.33226669,98057.0,98056.0,0.0017204]
[1732338613909,0.50373936,98057.0,98056.0,0.0017204]
[1732338614136,0.50573936,98057.0,98056.0,0.0017204]
[1732338614383,0.40573936,98057.0,98056.0,0.0017204]
[1732338615251,0.50573936,98057.0,98056.0,0.0017204]
[1732338615965,0.40573936,98057.0,98056.0,0.0017204]
[1732338618382,0.09647267,98025.0,97995.0,0.023]
[1732338619241,0.09647267,98025.0,97996.0,0.040626]
[1732338619939,0.09647267,98025.0,97997.0,0.023]
[1732338620160,0.09647267,98019.0,97997.0,0.023]
[1732338620373,0.09647267,98016.0,97997.0,0.023]
[1732338622367,0.09774793,98025.0,97997.0,0.023]
[1732338622574,0.0804923,98025.0,97998.0,0.00102022]
[1732338624297,0.0804923,98025.0,97997.0,0.023]
[1732338625273,0.0804923,98025.0,97998.0,0.00102013]
[1732338625514,0.0804923,98025.0,97997.0,0.023]
[1732338628352,0.0804923,98025.0,97997.0,0.51599233]
[1732338628579,0.07738347,98025.0,97997.0,0.023]
[1732338632627,0.07738347,98025.0,98000.0,0.49299233]
[1732338634532,0.07738347,98025.0,98001.0,0.023]
[1732338634970,0.07738347,98018.0,97998.0,0.023]
[1732338635186,0.07738347,98017.0,97997.0,0.0238606]
[1732338639148,0.0462,98019.0,97997.0,0.0238606]
[1732338639149,0.07738347,98015.0,97997.0,0.0238606]
[1732338641272,0.07738347,98012.0,97997.0,0.0008606]
[1732338646424,0.15898347,98012.0,97997.0,0.0008606]
[1732338654504,0.15898347,98012.0,97998.0,0.00102025]
[1732338655303,0.15898347,98012.0,97997.0,0.0008606]
[1732338657231,0.0491,98011.0,97997.0,0.0008606]
[1732338657495,0.0491,98011.0,97997.0,0.49385293]
[1732338658455,0.0491,98011.0,98000.0,0.49299233]
[1732338659340,0.0491,98011.0,98003.0,0.49299233]
[1732338660710,0.0491,98011.0,98002.0,0.49299233]
[1732338660965,0.0491,98011.0,97997.0,0.0008606]
[1732338660966,0.0491,98011.0,98003.0,0.49299233]
[1732338664967,0.0491,98011.0,98004.0,0.49299233]
[1732338665415,0.0491,98011.0,98005.0,0.00102026]
[1732338665605,0.07738347,98022.0,98005.0,0.00102026]
[1732338665606,0.01239065,98019.0,98005.0,0.00102026]
[1732338666554,0.01239065,98019.0,98006.0,0.00102016]
[1732338667512,0.01239065,98019.0,98007.0,0.00102016]
[1732338668631,0.01239065,98019.0,98003.0,0.023]
[1732338668632,0.01239065,98019.0,98008.0,0.00102016]
[1732338668835,0.01239065,98019.0,98004.0,0.00102016]
[1732338670228,0.01239065,98019.0,98004.0,0.04217004]
[1732338670447,0.01239065,98019.0,98004.0,0.00102016]
[1732338671477,0.048,98020.0,98004.0,0.00102016]
[1732338671736,0.07738347,98008.0,98004.0,0.00102016]
[1732338671954,0.001722,98025.0,97964.0,0.01973331]
[1732338671955,0.20138347,98004.0,98003.0,0.04193667]
[1732338672177,0.08026669,98001.0,98000.0,0.5]
[1732338672621,0.08026669,98001.0,97970.0,0.49385253]
[1732338672850,0.08026669,97999.0,97971.0,0.00102046]
[1732338673079,0.0012712,97998.0,97997.0,0.04304869]
[1732338673297,0.0012712,97998.0,97997.0,0.0008606]
[1732338675030,0.08026669,97999.0,97997.0,0.0008606]
[1732338675708,0.0012712,98003.0,97997.0,0.0008606]
[1732338675943,0.0012712,98003.0,97997.0,0.0428345]
[1732338676190,0.07738347,97998.0,97997.0,0.0428345]
[1732338676440,0.07738347,97998.0,97997.0,0.0008606]
[1732338676924,0.07865467,97998.0,97997.0,0.0008606]
[1732338677661,0.07738347,98001.0,97997.0,0.0008606]
[1732338677890,0.08,98011.0,97997.0,0.00188096]
[1732338678116,0.07738347,98016.0,97997.0,0.0008606]
[1732338678360,0.07738347,98016.0,97998.0,0.00102027]
[1732338678811,0.07738347,98016.0,97998.0,0.4940126]
[1732338679077,0.07738347,98016.0,97998.0,0.00102027]
[1732338679306,0.07738347,98016.0,97998.0,0.49299233]
[1732338679752,0.07738347,98016.0,97999.0,0.49299233]
[1732338680248,0.07738347,98016.0,97998.0,0.49299233]
[1732338680495,0.0497,98018.0,98000.0,0.00102021]
[1732338680737,0.08,98020.0,98000.0,0.00102021]
[1732338680972,0.08,98020.0,98000.0,0.49401254]
[1732338681206,0.08,98020.0,98004.0,0.49299233]
[1732338681438,0.08,98020.0,97997.0,0.0008606]
[1732338681439,0.08,98020.0,98005.0,0.49299233]
[1732338681919,0.07738347,98024.0,98006.0,0.00102016]
[1732338682152,0.07738347,98037.0,98013.0,0.49299233]
[1732338682373,0.07738347,98038.0,98017.0,0.49299233]
[1732338682593,0.07738347,98038.0,98019.0,0.49299233]
[1732338682819,0.07738347,98038.0,98020.0,0.00101999]
[1732338683744,0.07738347,98038.0,98020.0,0.02401999]
[1732338684417,0.07738347,98038.0,98020.0,0.00101999]
[1732338686048,0.07738347,98038.0,98018.0,0.023]
[1732338686273,0.07738347,98038.0,98019.0,0.00101998]
[1732338688179,0.07738347,98038.0,98017.0,0.49401231]
[1732338688651,0.07738347,98038.0,98017.0,0.02401998]
[1732338689388,0.07738347,98038.0,98017.0,0.00101998]
[1732338691283,0.07738347,98038.0,98017.0,0.02401998]
[1732338694573,0.0781,98047.0,98019.0,0.01973331]
[1732338694824,0.0781,98047.0,98023.0,0.01973331]
[1732338695059,0.0781,98047.0,98024.0,0.00101987]
[1732338695284,0.0781,98055.0,98033.0,0.01973331]
[1732338695498,0.0477,98059.0,98036.0,0.023]
[1732338695715,0.0477,98059.0,98041.0,0.5]
[1732338695944,0.0477,98059.0,98042.0,0.00101974]
[1732338696635,0.0477,98059.0,98045.0,0.5]
[1732338696883,0.0798212,98070.0,98046.0,0.00101969]
[1732338697336,0.0798212,98070.0,98046.0,0.02401969]
[1732338698549,0.0798212,98070.0,98046.0,0.023]
[1732338698776,0.0798212,98070.0,98042.0,0.04273331]
[1732338699223,0.0798212,98070.0,98042.0,0.08444038]
[1732338699909,0.0798212,98070.0,98042.0,0.06470707]
[1732338700166,0.0798212,98070.0,98042.0,0.08444038]
[1732338700628,0.0798212,98070.0,98048.0,0.5]
[1732338700920,0.0798212,98070.0,98049.0,0.023]
[1732338701879,0.0798212,98070.0,98043.0,0.023]
[1732338704679,0.0798212,98070.0,98044.0,0.00101964]
[1732338706994,0.00156805,98068.0,98044.0,0.00101964]
[1732338707212,0.0484,98067.0,98044.0,0.00101964]
[1732338707451,0.0796,98066.0,98044.0,0.00101964]
[1732338709423,0.0484,98065.0,98044.0,0.00101964]
[1732338710307,0.0484,98065.0,98043.0,0.023]
[1732338710521,0.00156805,98068.0,98042.0,0.04170707]
[1732338710522,0.0484,98052.0,98042.0,0.04170707]
[1732338710725,0.07738347,98055.0,98042.0,0.04170707]
[1732338710726,0.0484,98050.0,98042.0,0.04170707]
[1732338710927,0.0484,98050.0,98025.0,0.01973331]
[1732338711550,0.0484,98050.0,98025.0,0.0617076]
[1732338711957,0.0484,98050.0,98026.0,0.023]
[1732338712630,0.0484,98050.0,98028.0,0.023]
[1732338715818,0.0796,98049.0,98028.0,0.023]
[1732338716031,0.0484,98048.0,98028.0,0.023]
[1732338716991,0.0484,98048.0,98026.0,0.023]
[1732338720707,0.0484,98048.0,98028.0,0.0017192]
[1732338722086,0.0484,98048.0,98029.0,0.023]
[1732338725240,0.0465,98046.0,98029.0,0.023]
[1732338735897,0.0465,98046.0,98022.0,0.32266926]
[1732338736797,0.0465,98046.0,98020.0,0.02261653]
[1732338737957,0.0465,98046.0,98020.0,0.06420542]
[1732338738408,0.0815,98045.0,98020.0,0.02261653]
[1732338738620,0.0471,98044.0,98020.0,0.02261653]
[1732338738839,0.03949201,98044.0,98020.0,0.02261653]
[1732338739280,0.03949201,98044.0,98021.0,0.023]
[1732338739738,0.03949201,98044.0,98022.0,0.5]
[1732338744655,0.03949201,98044.0,98023.0,0.023]
[1732338745517,0.001983,98026.0,98023.0,0.023]
[1732338745740,0.001983,98026.0,98024.0,0.040613]
[1732338747734,0.001983,98026.0,98025.0,0.5]
[1732338748158,0.001983,98026.0,98025.0,0.523]
[1732338748882,0.07057297,98033.0,98025.0,0.523]
[1732338749785,0.07057297,98033.0,98026.0,0.023]
[1732338749786,0.0471,98032.0,98026.0,0.023]
[1732338750427,0.0471,98032.0,98026.0,0.49356774]
[1732338750638,0.0471,98032.0,98024.0,0.040613]
[1732338751917,0.0471,98030.0,98024.0,0.040613]
[1732338752139,0.0815,98029.0,98024.0,0.040613]
[1732338752344,0.0471,98028.0,98024.0,0.040613]
[1732338759211,0.0471,98028.0,98024.0,0.042333]
[1732338761725,0.0779,98027.0,98024.0,0.042333]
[1732338761949,0.0454,98026.0,98024.0,0.042333]
[1732338762170,0.1233,98025.0,98024.0,0.53592848]
[1732338762444,0.1233,98025.0,98024.0,0.042333]
[1732338779673,0.20068347,98025.0,98024.0,0.042333]
[1732338779897,0.20068347,98025.0,98024.0,0.00172]
[1732338780117,0.20195467,98025.0,98024.0,0.00172]
[1732338785916,0.125,98024.0,98017.0,0.10172]
[1732338786171,0.0464,98020.0,98017.0,0.10172]
[1732338786416,0.0786,98018.0,98017.0,0.10172]
[1732338786655,0.125,98018.0,98017.0,0.1436702]
[1732338790860,0.0786,98025.0,98017.0,0.1436702]
[1732338791079,0.03104515,98025.0,98017.0,0.1436702]
[1732338791326,0.03104515,98025.0,98018.0,0.00102009]
[1732338792084,0.03104515,98025.0,98019.0,0.00102009]
[1732338792770,0.00086,98026.0,98019.0,0.00102009]
[1732338792990,0.08026669,98041.0,98019.0,0.00102009]
[1732338792991,0.01383558,98041.0,98019.0,0.00102009]
[1732338793209,0.08026669,98051.0,98019.0,0.00102009]
[1732338793453,0.08026669,98053.0,98019.0,0.00102009]
[1732338793676,0.07738347,98053.0,98019.0,0.02402009]
[1732338793893,0.07738347,98054.0,98019.0,0.02402009]
[1732338794121,0.0786,98051.0,98019.0,0.02402009]
[1732338794618,0.00086,98026.0,98021.0,0.5]
[1732338794836,0.00086,98026.0,98022.0,0.00101989]
[1732338795055,0.00086,98026.0,98023.0,0.00101989]
[1732338796668,0.00086,98026.0,98025.0,0.5]
[1732338797787,0.0012712,98082.0,98038.0,0.0755]
[1732338797788,0.03110782,98062.0,98038.0,0.0755]
[1732338799656,0.03110782,98062.0,98039.0,0.5]
[1732338802622,0.03110782,98062.0,98038.0,0.0755]
[1732338803526,0.03110782,98062.0,98038.0,0.11571673]
[1732338803750,0.03110782,98062.0,98039.0,0.5]
[1732338804231,0.15528347,98071.0,98040.0,0.04831971]
[1732338804706,0.15528347,98071.0,98046.0,0.5]
[1732338804938,0.15528347,98071.0,98047.0,0.00101969]
[1732338805163,0.08026669,98069.0,98046.0,0.5]
[1732338805618,0.08026669,98069.0,98040.0,0.0473]
[1732338806127,0.08026669,98069.0,98038.0,0.11571673]
[1732338806341,0.0488,98067.0,98038.0,0.11571673]
[1732338807315,0.0008597,98062.0,98038.0,0.11571673]
[1732338807760,0.0008597,98062.0,98038.0,0.61571673]
[1732338809954,0.0008597,98062.0,98039.0,0.02389855]
[1732338812804,0.0008597,98062.0,98040.0,0.0010197]
[1732338814774,0.0008597,98062.0,98046.0,0.5]
[1732338815131,0.0008597,98062.0,98047.0,0.0010197]
[1732338816808,0.00070654,98062.0,98047.0,0.0010197]
[1732338817501,0.1267,98050.0,98046.0,0.5]
[1732338817725,0.1267,98050.0,98038.0,0.04021673]
[1732338818222,0.1267,98050.0,98025.0,0.49169929]
[1732338818451,0.1267,98050.0,98024.0,0.5]
[1732338819231,0.1267,98050.0,98024.0,0.99162537]
[1732338819436,0.1267,98050.0,98025.0,0.0010199]
[1732338819652,0.1267,98050.0,98028.0,0.5]
[1732338820519,0.1267,98050.0,98028.0,0.24670389]
[1732338821096,0.1279712,98050.0,98028.0,0.24670389]
[1732338822333,0.1279712,98050.0,98029.0,0.0010199]
[1732338822802,0.103665,98050.0,98029.0,0.0010199]
[1732338823008,0.00070654,98062.0,98032.0,0.0764]
[1732338823176,0.00070654,98062.0,98033.0,0.00101975]
[1732338823378,0.00070654,98062.0,98032.0,0.0764]
[1732338823379,0.00070654,98062.0,98034.0,0.00101975]
[1732338823733,0.00070654,98062.0,98040.0,0.5]
[1732338823946,0.00070654,98062.0,98041.0,0.0010197]
[1732338824180,0.08183474,98068.0,98042.0,0.0010197]
[1732338824391,0.08183474,98068.0,98043.0,0.0788]
[1732338824604,0.08183474,98068.0,98044.0,0.5010197]
[1732338824835,0.00156805,98068.0,98044.0,0.5010197]
[1732338825282,0.08183474,98068.0,98044.0,0.5010197]
[1732338825930,0.13063474,98068.0,98049.0,0.5]
[1732338826146,0.05036805,98068.0,98050.0,0.0010197]
[1732338826356,0.13063474,98068.0,98050.0,0.0010197]
[1732338826582,0.05036805,98068.0,98050.0,0.0010197]
[1732338827008,0.13063474,98068.0,98050.0,0.0010197]
[1732338827239,0.05036805,98068.0,98050.0,0.0010197]
[1732338827468,0.13063474,98068.0,98050.0,0.0010197]
[1732338827907,0.05036805,98068.0,98050.0,0.0010197]
[1732338828119,0.13063474,98068.0,98050.0,0.0010197]
[1732338828540,0.08026669,98067.0,98050.0,0.0010197]
[1732338830292,0.05036805,98068.0,98050.0,0.0010197]
[1732338830525,0.08026669,98067.0,98050.0,0.0010197]
[1732338830957,0.05036805,98068.0,98050.0,0.0010197]
[1732338831167,0.08026669,98067.0,98050.0,0.0010197]
[1732338831607,0.05036805,98068.0,98050.0,0.0010197]
[1732338831825,0.08026669,98066.0,98050.0,0.0010197]
[1732338832056,0.05036805,98068.0,98050.0,0.0010197]
[1732338832273,0.00156805,98068.0,98051.0,0.0788]
[1732338832501,0.00156805,98068.0,98052.0,0.00101961]
[1732338832752,0.00156805,98068.0,98057.0,0.5]
[1732338832976,0.00156805,98068.0,98058.0,0.12681953]
[1732338835733,0.00156805,98068.0,98066.0,0.5]
[1732338835953,0.00156805,98068.0,98067.0,0.00101953]
[1732338836403,0.00156805,98068.0,98066.0,0.5]
[1732338839732,0.00156805,98068.0,98058.0,0.0788]
[1732338840685,0.00156805,98068.0,98062.0,0.5]
[1732338841592,0.00156805,98068.0,98058.0,0.5788]
[1732338842275,0.08026669,98082.0,98058.0,0.5788]
[1732338842729,0.08026669,98082.0,98060.0,0.5]
[1732338845711,0.0043968,98083.0,98060.0,0.5]
[1732338845712,0.0008598,98070.0,98060.0,0.5]
[1732338849648,0.0008598,98070.0,98060.0,0.54128066]
[1732338855043,0.0043968,98083.0,98061.0,0.0684607]
[1732338855264,0.0043968,98083.0,98062.0,0.0795]
[1732338855486,0.0043968,98083.0,98063.0,0.00101954]
[1732338855714,0.0043968,98083.0,98067.0,0.5]
[1732338855964,0.0043968,98083.0,98068.0,0.00101954]
[1732338856682,0.0043968,98083.0,98067.0,0.5]
[1732338857340,0.0008598,98070.0,98067.0,0.5]
[1732338857822,0.0008598,98070.0,98063.0,0.01954115]
[1732338859913,0.0008598,98070.0,98064.0,0.00101954]
[1732338860505,0.0008598,98070.0,98064.0,0.02034494]
[1732338862557,0.08466349,98083.0,98064.0,0.02034494]
[1732338862558,0.0043968,98083.0,98065.0,0.0453]
[1732338862797,0.0043968,98083.0,98066.0,0.00101954]
[1732338863768,0.0043968,98083.0,98071.0,0.5]
[1732338864008,0.0043968,98083.0,98072.0,0.00101954]
[1732338864244,0.08466349,98083.0,98072.0,0.00101954]
[1732338866562,0.0043968,98083.0,98072.0,0.00101954]
[1732338867059,0.0043968,98083.0,98072.0,0.0414955]
[1732338867304,0.07738347,98101.0,98073.0,0.09753362]
[1732338867305,0.08026669,98095.0,98073.0,0.09753362]
[1732338867521,0.08026669,98095.0,98074.0,0.00101942]
[1732338867744,0.08026669,98095.0,98080.0,0.5]
[1732338867975,0.08026669,98095.0,98081.0,0.00101942]
[1732338868670,0.08026669,98090.0,98081.0,0.00101942]
[1732338869119,0.0008598,98083.0,98081.0,0.00101942]
[1732338874186,0.08026669,98090.0,98081.0,0.00101942]
[1732338876545,0.08026669,98090.0,98081.0,0.04302012]
[1732338876758,0.08026669,98090.0,98081.0,0.00101942]
[1732338879747,0.08026669,98095.0,98081.0,0.04234475]
[1732338880399,0.08026669,98090.0,98081.0,0.04234475]
[1732338881307,0.08026669,98090.0,98081.0,0.04406415]
[1732338882451,0.048,98097.0,98081.0,0.04406415]
[1732338882661,0.08026669,98095.0,98081.0,0.04406415]
[1732338882899,0.08026669,98090.0,98081.0,0.04406415]
[1732338884270,0.08026669,98094.0,98081.0,0.04406415]
[1732338884537,0.08026669,98095.0,98081.0,0.04406415]
[1732338885913,0.048,98097.0,98081.0,0.04406415]
[1732338886109,0.08026669,98095.0,98081.0,0.04406415]
[1732338886565,0.048,98097.0,98081.0,0.04406415]
[1732338886800,0.08026669,98094.0,98081.0,0.04406415]
[1732338887061,0.048,98097.0,98081.0,0.04406415]
[1732338887300,0.08026669,98094.0,98081.0,0.04406415]
[1732338888670,0.08026669,98090.0,98081.0,0.04406415]
[1732338889794,0.048,98097.0,98081.0,0.04406415]
[1732338891158,0.08026669,98094.0,98081.0,0.04406415]
[1732338891375,0.048,98097.0,98081.0,0.04406415]
[1732338891599,0.048,98097.0,98081.0,0.05870566]
[1732338891824,0.08026669,98098.0,98081.0,0.05870566]
[1732338892051,0.08026669,98098.0,98082.0,0.0751]
[1732338892300,0.08026669,98094.0,98083.0,0.00101943]
[1732338892546,0.08026669,98098.0,98083.0,0.00101943]
[1732338892756,0.07738347,98102.0,98083.0,0.00101943]
[1732338893418,0.08026669,98099.0,98083.0,0.00101943]
[1732338893642,0.07738347,98102.0,98083.0,0.00101943]
[1732338893869,0.08026669,98099.0,98083.0,0.00101943]
[1732338894317,0.07738347,98101.0,98083.0,0.00101943]
[1732338894535,0.0008597,98098.0,98083.0,0.00101943]
[1732338897770,0.0008597,98098.0,98083.0,0.01493436]
[1732338898667,0.0008597,98098.0,98086.0,0.5]
[1732338898880,0.0008597,98098.0,98087.0,0.00101938]
[1732338899116,0.0008597,98098.0,98088.0,0.00101938]
[1732338900051,0.0008597,98098.0,98086.0,0.16695271]
[1732338901840,0.0008597,98098.0,98086.0,0.25]
[1732338903664,0.08026669,98094.0,98086.0,0.5]
[1732338903919,0.08112639,98098.0,98086.0,0.5]
[1732338904185,0.08026669,98094.0,98086.0,0.5]
[1732338904396,0.0008597,98098.0,98086.0,0.5]
[1732338904611,0.08026669,98094.0,98086.0,0.5]
[1732338904826,0.08026669,98095.0,98086.0,0.5]
[1732338906721,0.08026669,98095.0,98083.0,0.01391493]
[1732338907174,0.08026669,98094.0,98083.0,0.01391493]
[1732338907636,0.1319,98093.0,98086.0,0.5]
[1732338907871,0.0487,98092.0,98086.0,0.5]
[1732338908098,0.08447424,98093.0,98086.0,0.5]
[1732338908099,0.00127438,98091.0,98086.0,0.5]
[1732338908324,0.0832,98093.0,98086.0,0.5]
[1732338908325,0.0487,98090.0,98086.0,0.5]
[1732338908579,0.00127438,98089.0,98086.0,0.5]
[1732338908802,0.0487,98090.0,98081.0,0.04304473]
[1732338909246,0.0487,98090.0,98082.0,0.01358325]
[1732338915225,0.0487,98090.0,98083.0,0.03207871]
[1732338923257,0.0459597,98098.0,98084.0,0.01369168]
[1732338923486,0.0008596,98167.0,98084.0,0.01369168]
[1732338923487,0.0451,98106.0,98084.0,0.01369168]
[1732338924665,0.0451,98106.0,98086.0,0.5]
[1732338924883,0.0451,98106.0,98087.0,0.01369168]
[1732338925994,0.0012742,98105.0,98087.0,0.01369168]
[1732338926763,0.08026669,98098.0,98087.0,0.01369168]
[1732338926978,0.0012742,98105.0,98087.0,0.01369168]
[1732338927871,0.08026669,98097.0,98087.0,0.01369168]
[1732338928092,0.08026669,98100.0,98087.0,0.01369168]
[1732338928336,0.08026669,98097.0,98087.0,0.01369168]
[1732338928574,0.08026669,98094.0,98087.0,0.01369168]
[1732338928787,0.08026669,98098.0,98087.0,0.01369168]
[1732338929242,0.08026669,98093.0,98087.0,0.01369168]
[1732338929452,0.08026669,98100.0,98087.0,0.01369168]
[1732338929740,0.08026669,98093.0,98087.0,0.01369168]
[1732338933950,0.03698147,98093.0,98087.0,0.01369168]
[1732338934620,0.0305074,98093.0,98087.0,0.01369168]
[1732338938263,0.0012742,98105.0,98087.0,0.01369168]
[1732338938450,0.0305074,98093.0,98087.0,0.01369168]
[1732338941537,0.1274,98092.0,98087.0,0.01369168]
[1732338942177,0.049,98092.0,98087.0,0.01369168]
[1732338943541,0.049,98092.0,98087.0,0.01541088]
[1732338950375,0.07967427,98091.0,98087.0,0.01541088]
[1732338951237,0.07967427,98091.0,98087.0,0.0017192]
[1732338953953,0.049,98090.0,98087.0,0.0017192]
[1732338954197,0.049,98088.0,98087.0,0.0017192]
[1732338955625,0.0795074,98088.0,98087.0,0.0017192]
[1732338955839,0.1579074,98088.0,98087.0,0.0017192]
[1732338980224,0.23656535,98088.0,98087.0,0.0017192]
[1732338980433,0.23529087,98088.0,98087.0,0.0017192]
[1732338982847,0.23529087,98088.0,97995.0,0.62575425]
[1732338982848,0.0305074,98069.0,98050.0,0.41376584]
[1732338983057,0.0305074,98069.0,98057.0,0.04173112]
[1732338983533,0.0305074,98069.0,98058.0,0.00447692]
[1732338983969,0.0305074,98069.0,98051.0,0.25]
[1732338984398,0.0305074,98069.0,98052.0,0.0044928]
[1732338985342,0.0305074,98069.0,98053.0,0.01480556]
[1732338985778,0.0305074,98069.0,98054.0,0.00449404]
[1732338986004,0.0305074,98069.0,98055.0,0.1313]
[1732338986448,0.0305074,98069.0,98056.0,0.004493]
[1732338991550,0.0305074,98069.0,98056.0,0.0053531]
[1732338992004,0.0305074,98069.0,98056.0,0.02171466]
[1732338993836,0.0305074,98069.0,98057.0,0.01636156]
[1732338994278,0.0305074,98069.0,98058.0,0.00449511]
[1732338996384,0.0280744,98069.0,98058.0,0.00449511]
[1732338996672,0.0280744,98069.0,98058.0,0.02016243]
[1732338998121,0.00127464,98068.0,98058.0,0.02016243]
[1732338999393,0.02934904,98069.0,98058.0,0.02016243]
[1732339000285,0.0280744,98069.0,98058.0,0.02016243]
[1732339003157,0.0297954,98069.0,98058.0,0.02016243]
[1732339003371,0.0297954,98069.0,98059.0,0.00796602]
[1732339003606,0.0297954,98069.0,98060.0,0.00449691]
[1732339003838,0.0297954,98069.0,98059.0,0.00796602]
[1732339004066,0.0297954,98069.0,98060.0,0.00449744]
[1732339004307,0.02516036,98069.0,98060.0,0.00449744]
[1732339004541,0.02516036,98069.0,98059.0,0.00796602]
[1732339004986,0.02516036,98069.0,98060.0,0.00449784]
[1732339005222,0.02516036,98069.0,98059.0,0.00796602]
[1732339005460,0.02516036,98069.0,98060.0,0.00449757]
[1732339005708,0.02516036,98069.0,98059.0,0.00796602]
[1732339005946,0.02516036,98069.0,98061.0,0.00449775]
[1732339006183,0.02516036,98069.0,98059.0,0.00796602]
[1732339006641,0.02516036,98069.0,98060.0,0.00449669]
[1732339006879,0.02516036,98069.0,98059.0,0.00796602]
[1732339007305,0.02516036,98069.0,98060.0,0.00449722]
[1732339007770,0.02516036,98069.0,98059.0,0.00796602]
[1732339008027,0.02516036,98069.0,98060.0,0.00551661]
[1732339008265,0.02516036,98069.0,98059.0,0.00796602]
[1732339008480,0.02516036,98069.0,98060.0,0.00551661]
[1732339008932,0.02516036,98069.0,98059.0,0.00796602]
[1732339009363,0.02516036,98069.0,98060.0,0.00551661]
[1732339009569,0.00127464,98068.0,98060.0,0.00551661]
[1732339009788,0.00127464,98068.0,98059.0,0.00796602]
[1732339010012,0.00127464,98068.0,98060.0,0.00551688]
[1732339010244,0.00127464,98068.0,98059.0,0.00796602]
[1732339010737,0.027435,98069.0,98060.0,0.00551688]
[1732339010949,0.00127464,98068.0,98060.0,0.00551688]
[1732339011165,0.00127464,98068.0,98059.0,0.00796602]
[1732339011593,0.00127464,98068.0,98060.0,0.00551688]
[1732339012037,0.00127464,98068.0,98059.0,0.00796602]
[1732339012266,0.00127464,98068.0,98060.0,0.00551749]
[1732339012490,0.00127464,98068.0,98059.0,0.00796602]
[1732339013105,0.00127464,98068.0,98060.0,0.00551776]
[1732339013570,0.00127464,98068.0,98059.0,0.00796602]
[1732339014081,0.00127464,98068.0,98060.0,0.00551776]
[1732339014541,0.00127464,98068.0,98059.0,0.00796602]
[1732339014778,0.027435,98069.0,98059.0,0.00796602]
[1732339014993,0.027435,98069.0,98060.0,0.00551803]
[1732339015449,0.027435,98069.0,98059.0,0.00882642]
[1732339015666,0.0234271,98069.0,98061.0,0.00551775]
[1732339015922,0.0234271,98069.0,98059.0,0.00882642]
[1732339015923,0.0234271,98069.0,98062.0,0.00551748]
[1732339016387,0.0234271,98069.0,98059.0,0.00882642]
[1732339016603,0.0234271,98069.0,98063.0,0.00475263]
[1732339016829,0.0234271,98069.0,98059.0,0.00882642]
[1732339017278,0.0234271,98069.0,98060.0,0.00475345]
[1732339018265,0.0234271,98068.0,98060.0,0.00475345]
[1732339024620,0.0234271,98069.0,98060.0,0.00475345]
[1732339024842,0.00101594,98068.0,98060.0,0.00475345]
[1732339025086,0.02444304,98068.0,98060.0,0.00475345]
[1732339025576,0.02444304,98068.0,98060.0,0.04625851]
[1732339025859,0.00101594,98068.0,98060.0,0.00475345]
[1732339026097,0.02444304,98068.0,98060.0,0.00475345]
[1732339026804,0.02444304,98068.0,98060.0,0.00561385]
[1732339030088,0.02444304,98068.0,98060.0,0.04698299]
[1732339033771,0.0234271,98064.0,98060.0,0.04698299]
[1732339033995,0.04951594,98063.0,98060.0,0.04698299]
[1732339041789,0.0234271,98061.0,98060.0,0.04698299]
[1732339042017,0.22512651,98061.0,98060.0,0.04698299]
[1732339042286,0.22611057,98061.0,98060.0,0.04222954]
[1732339042504,0.22611057,98061.0,98060.0,0.04720888]
[1732339042723,0.22611057,98061.0,98060.0,0.04222954]
[1732339046849,0.32611057,98061.0,98060.0,0.04222954]
[1732339057103,0.22611057,98061.0,98060.0,0.04222954]
[1732339071133,0.14821057,98061.0,98060.0,0.04222954]
[1732339071345,0.08039941,98061.0,98060.0,0.04222954]
[1732339071566,0.10382651,98061.0,98060.0,0.04222954]
[1732339079223,0.10182651,98061.0,98060.0,0.04222954]
[1732339079696,0.00101594,98063.0,98060.0,0.04222954]
[1732339079918,0.12468347,98067.0,98060.0,0.04222954]
[1732339079919,0.00101594,98067.0,98060.0,0.12995544]
[1732339080141,0.0234271,98061.0,98060.0,0.12995544]
[1732339081056,0.0234271,98061.0,98060.0,0.17665544]
[1732339082383,0.0234271,98061.0,98060.0,0.12995544]
[1732339083544,0.00273674,98069.0,98038.0,0.11116083]
[1732339083545,0.0234271,98055.0,98038.0,0.11116083]
[1732339083971,0.0234271,98055.0,98039.0,0.023]
[1732339084384,0.0234271,98055.0,98040.0,0.00101979]
[1732339085714,0.0234271,98055.0,98045.0,0.25]
[1732339086441,0.0234271,98055.0,98046.0,0.0956]
[1732339086897,0.0234271,98055.0,98047.0,0.023]
[1732339088685,0.0234271,98060.0,98047.0,0.023]
[1732339088898,0.0234271,98055.0,98047.0,0.023]
[1732339090909,0.00522711,98055.0,98047.0,0.023]
[1732339091149,0.00273674,98069.0,98045.0,0.25]
[1732339091150,0.00522711,98060.0,98050.0,0.0824]
[1732339091377,0.0017208,98069.0,98052.0,0.0956]
[1732339091585,0.0017208,98069.0,98054.0,0.0824]
[1732339091795,0.0017208,98069.0,98055.0,0.0010197]
[1732339093298,0.0017208,98069.0,98055.0,0.0240197]
[1732339093508,0.0017208,98069.0,98055.0,0.023]
[1732339096361,0.0017208,98069.0,98055.0,0.0238604]
[1732339096774,0.0017208,98069.0,98055.0,0.06444456]
[1732339096981,0.0017208,98069.0,98054.0,0.04198146]
[1732339098843,0.0017208,98069.0,98054.0,0.08379319]
[1732339099310,0.00101594,98068.0,98054.0,0.04181173]
[1732339099750,0.00101594,98068.0,98042.0,0.25]
[1732339100646,0.00101594,98068.0,98042.0,0.29046057]
[1732339102205,0.00101594,98068.0,98043.0,0.00101975]
[1732339105186,0.0017208,98069.0,98043.0,0.00101975]
[1732339105418,0.0017208,98069.0,98044.0,0.03213364]
[1732339105628,0.00273674,98069.0,98050.0,0.25]
[1732339105848,0.00273674,98069.0,98051.0,0.00101975]
[1732339106058,0.0017208,98069.0,98051.0,0.00101975]
[1732339106552,0.13051594,98068.0,98050.0,0.25]
[1732339106771,0.13051594,98068.0,98044.0,0.25]